[Event "Live Chess"]
[Site "Chess.com"]
[Date "2023.05.21"]
[Round "-"]
[White "toxic_rabbit"]
[Black "omisoc"]
[Result "0-1"]
[WhiteElo "1979"]
[BlackElo "2175"]
[TimeControl "300"]
[EndTime "3:26:08 PDT"]
[Termination "omisoc won by resignation"]

1. e4 {[%clk 0:04:57.5]} 1... c5 {[%clk 0:04:56.9]} 2. c3 {[%clk 0:04:56.6]}
2... Nf6 {[%clk 0:04:54.4]} 3. e5 {[%clk 0:04:55.7]} 3... Nd5 {[%clk 0:04:53.3]}
4. d4 {[%clk 0:04:55.6]} 4... cxd4 {[%clk 0:04:51.5]} 5. cxd4 {[%clk 0:04:55.4]}
5... d6 {[%clk 0:04:50.4]} 6. exd6 {[%clk 0:04:55.3]} 6... Qxd6 {[%clk
0:04:46.4]} 7. Nf3 {[%clk 0:04:54.3]} 7... Nc6 {[%clk 0:04:44.8]} 8. Be2 {[%clk
0:04:53.4]} 8... g6 {[%clk 0:04:42.6]} 9. Nc3 {[%clk 0:04:51.8]} 9... Bg7 {[%clk
0:04:41.1]} 10. O-O {[%clk 0:04:50.1]} 10... O-O {[%clk 0:04:39.8]} 11. Bc4
{[%clk 0:04:48.5]} 11... Be6 {[%clk 0:04:29.3]} 12. Qb3 {[%clk 0:04:30.4]} 12...
Nxc3 {[%clk 0:04:27]} 13. bxc3 {[%clk 0:04:28.7]} 13... Na5 {[%clk 0:04:24.2]}
14. Bxe6 {[%clk 0:04:21.8]} 14... Nxb3 {[%clk 0:04:21.9]} 15. Bxb3 {[%clk
0:04:21.7]} 15... Rac8 {[%clk 0:04:19.3]} 16. Bd2 {[%clk 0:04:20]} 16... e5
{[%clk 0:04:15.4]} 17. Rad1 {[%clk 0:04:12.6]} 17... exd4 {[%clk 0:04:13.6]} 18.
cxd4 {[%clk 0:04:12.5]} 18... b5 {[%clk 0:04:08.8]} 19. g3 {[%clk 0:04:04.9]}
19... h6 {[%clk 0:04:06.7]} 20. Bf4 {[%clk 0:03:59.7]} 20... Qc6 {[%clk
0:04:01]} 21. d5 {[%clk 0:03:57.7]} 21... Qc3 {[%clk 0:03:59.8]} 22. Kg2 {[%clk
0:03:53.3]} 22... a5 {[%clk 0:03:58.1]} 23. Bd2 {[%clk 0:03:47.7]} 23... Qc7
{[%clk 0:03:55.4]} 24. Bf4 {[%clk 0:03:42.3]} 24... Qd7 {[%clk 0:03:51.1]} 25.
d6 {[%clk 0:03:38.6]} 25... a4 {[%clk 0:03:48]} 26. Bd5 {[%clk 0:03:27.2]} 26...
Rfe8 {[%clk 0:03:18.1]} 27. Rfe1 {[%clk 0:03:18.4]} 27... g5 {[%clk 0:03:09.1]}
28. Ne5 {[%clk 0:03:00.7]} 28... Bxe5 {[%clk 0:03:02.3]} 29. Bxe5 {[%clk
0:02:58.3]} 29... Rc2 {[%clk 0:02:43.4]} 30. h3 {[%clk 0:02:03.9]} 30... Qf5
{[%clk 0:02:22]} 31. Bf3 {[%clk 0:01:31.9]} 31... Rd8 {[%clk 0:02:10]} 32. g4
{[%clk 0:01:18]} 32... Qc8 {[%clk 0:01:52.9]} 33. Bf6 {[%clk 0:00:58.8]} 33...
Qc5 {[%clk 0:01:51.3]} 34. Re3 {[%clk 0:00:32.3]} 34... Qxe3 {[%clk 0:01:44.5]}
0-1

[Event "Live Chess"]
[Site "Chess.com"]
[Date "2023.05.21"]
[Round "-"]
[White "OleksiyJr1"]
[Black "JoshMcK"]
[Result "1-0"]
[WhiteElo "977"]
[BlackElo "1506"]
[TimeControl "300"]
[EndTime "3:26:16 PDT"]
[Termination "OleksiyJr1 won by resignation"]

1. e4 {[%clk 0:04:58.2]} 1... d6 {[%clk 0:04:58.4]} 2. Nf3 {[%clk 0:04:51.1]}
2... Nf6 {[%clk 0:04:52.6]} 3. Nc3 {[%clk 0:04:50.2]} 3... g6 {[%clk 0:04:50.4]}
4. d3 {[%clk 0:04:49.7]} 4... Bg7 {[%clk 0:04:47.9]} 5. Bg5 {[%clk 0:04:49.2]}
5... O-O {[%clk 0:04:45.5]} 6. Be2 {[%clk 0:04:43.8]} 6... c5 {[%clk 0:04:40.8]}
7. O-O {[%clk 0:04:41.9]} 7... Nc6 {[%clk 0:04:36.4]} 8. a3 {[%clk 0:04:39.3]}
8... a6 {[%clk 0:04:33.5]} 9. Bxf6 {[%clk 0:04:28.3]} 9... Bxf6 {[%clk
0:04:31.1]} 10. Nd5 {[%clk 0:04:27.8]} 10... Bg7 {[%clk 0:04:28.6]} 11. b4
{[%clk 0:04:17.2]} 11... Bxa1 {[%clk 0:04:25.9]} 12. Qxa1 {[%clk 0:03:52.9]}
12... cxb4 {[%clk 0:04:24.8]} 13. axb4 {[%clk 0:03:51]} 13... e5 {[%clk
0:04:22.8]} 14. b5 {[%clk 0:03:46.1]} 14... Ne7 {[%clk 0:04:20.3]} 15. bxa6
{[%clk 0:03:43.6]} 15... Rxa6 {[%clk 0:04:18.3]} 16. Nxe7+ {[%clk 0:03:41.4]}
16... Qxe7 {[%clk 0:04:17]} 17. Qc3 {[%clk 0:03:37.6]} 17... Be6 {[%clk
0:04:10.9]} 18. d4 {[%clk 0:03:29.4]} 18... Rc6 {[%clk 0:04:08.1]} 19. Qb4
{[%clk 0:03:23.4]} 19... exd4 {[%clk 0:04:07]} 20. Nxd4 {[%clk 0:03:21.8]} 20...
Rc7 {[%clk 0:03:59.4]} 21. Nxe6 {[%clk 0:03:20.5]} 21... Qxe6 {[%clk 0:03:57.6]}
22. Bd3 {[%clk 0:03:20]} 22... Rfc8 {[%clk 0:03:53.7]} 23. Ra1 {[%clk
0:03:18.5]} 23... Qe5 {[%clk 0:03:48.7]} 24. Ra7 {[%clk 0:03:08.6]} 24... Qd4
{[%clk 0:03:38.5]} 25. Qxd4 {[%clk 0:02:59.6]} 1-0

[Event "Live Chess"]
[Site "Chess.com"]
[Date "2023.05.21"]
[Round "-"]
[White "RichardABates"]
[Black "JanMur7"]
[Result "0-1"]
[WhiteElo "2124"]
[BlackElo "1967"]
[TimeControl "300"]
[EndTime "3:26:24 PDT"]
[Termination "JanMur7 won - game abandoned"]

1. d4 {[%clk 0:04:58.9]} 1... Nf6 {[%clk 0:04:58.2]} 2. Nf3 {[%clk 0:04:57.4]}
2... e6 {[%clk 0:04:57.3]} 3. c4 {[%clk 0:04:56.2]} 3... Be7 {[%clk 0:04:55]} 4.
Nc3 {[%clk 0:04:54.8]} 4... d5 {[%clk 0:04:54.4]} 5. cxd5 {[%clk 0:04:53.2]}
5... exd5 {[%clk 0:04:53.5]} 6. Bg5 {[%clk 0:04:51.9]} 6... h6 {[%clk
0:04:52.4]} 7. Bxf6 {[%clk 0:04:50.4]} 7... Bxf6 {[%clk 0:04:52.3]} 8. e3 {[%clk
0:04:49.6]} 8... O-O {[%clk 0:04:51.9]} 9. Bd3 {[%clk 0:04:48.7]} 9... b6 {[%clk
0:04:43.4]} 10. O-O {[%clk 0:04:47.2]} 10... Bb7 {[%clk 0:04:43]} 11. Qc2 {[%clk
0:04:41.6]} 11... Nd7 {[%clk 0:04:42.1]} 12. b4 {[%clk 0:04:35.7]} 12... c5
{[%clk 0:04:36.3]} 13. bxc5 {[%clk 0:04:33.1]} 13... bxc5 {[%clk 0:04:36.2]} 14.
Bf5 {[%clk 0:04:32]} 14... cxd4 {[%clk 0:04:31.1]} 15. exd4 {[%clk 0:04:29.3]}
15... Nb6 {[%clk 0:04:25.2]} 16. Rfe1 {[%clk 0:04:21]} 16... Re8 {[%clk
0:04:18.3]} 17. Qd3 {[%clk 0:04:17.3]} 17... Rxe1+ {[%clk 0:03:54.3]} 18. Rxe1
{[%clk 0:04:15.4]} 18... Qf8 {[%clk 0:03:53.9]} 0-1

[Event "Live Chess"]
[Site "Chess.com"]
[Date "2023.05.21"]
[Round "-"]
[White "Sweet-O"]
[Black "JohanKjeldahl"]
[Result "0-1"]
[WhiteElo "1422"]
[BlackElo "1893"]
[TimeControl "300"]
[EndTime "3:26:29 PDT"]
[Termination "JohanKjeldahl won by resignation"]

1. d4 {[%clk 0:04:59]} 1... Nf6 {[%clk 0:04:58.2]} 2. Nc3 {[%clk 0:04:58.9]}
2... c5 {[%clk 0:04:55.8]} 3. d5 {[%clk 0:04:56.1]} 3... d6 {[%clk 0:04:53.4]}
4. Bf4 {[%clk 0:04:55.1]} 4... g6 {[%clk 0:04:52]} 5. e4 {[%clk 0:04:54]} 5...
Nbd7 {[%clk 0:04:48.7]} 6. Bb5 {[%clk 0:04:49.8]} 6... a6 {[%clk 0:04:46.8]} 7.
Ba4 {[%clk 0:04:40.2]} 7... b5 {[%clk 0:04:45]} 8. Nxb5 {[%clk 0:04:28.4]} 8...
axb5 {[%clk 0:04:42.2]} 9. Bxb5 {[%clk 0:04:28.3]} 9... Qa5+ {[%clk 0:04:40.7]}
10. Qd2 {[%clk 0:04:23.5]} 10... Qxb5 {[%clk 0:04:39.4]} 11. Nf3 {[%clk
0:04:18.6]} 11... Nxe4 {[%clk 0:04:31.5]} 12. Qe3 {[%clk 0:04:12.2]} 12... Ndf6
{[%clk 0:04:28.9]} 0-1

[Event "Live Chess"]
[Site "Chess.com"]
[Date "2023.05.21"]
[Round "-"]
[White "Abde2012"]
[Black "Tushinskiy"]
[Result "0-1"]
[WhiteElo "738"]
[BlackElo "2187"]
[TimeControl "300"]
[EndTime "3:26:35 PDT"]
[Termination "Tushinskiy won by resignation"]

1. d4 {[%clk 0:04:54.9]} 1... e5 {[%clk 0:04:57.4]} 2. dxe5 {[%clk 0:04:52.7]}
2... d6 {[%clk 0:04:56.7]} 3. exd6 {[%clk 0:04:51.5]} 3... Bxd6 {[%clk
0:04:56.6]} 4. Nc3 {[%clk 0:04:47.8]} 4... Nf6 {[%clk 0:04:52]} 5. Bg5 {[%clk
0:04:45]} 5... Nc6 {[%clk 0:04:49.8]} 6. Nf3 {[%clk 0:04:42.5]} 6... Bg4 {[%clk
0:04:48.8]} 7. e3 {[%clk 0:04:38.6]} 7... Qe7 {[%clk 0:04:46.5]} 8. Be2 {[%clk
0:04:38.4]} 8... O-O-O {[%clk 0:04:45.5]} 9. O-O {[%clk 0:04:23.3]} 9... Bxh2+
{[%clk 0:04:41.7]} 10. Kxh2 {[%clk 0:04:20.8]} 10... Rxd1 {[%clk 0:04:41.6]} 11.
Rfxd1 {[%clk 0:04:17.9]} 11... Bxf3 {[%clk 0:04:36]} 12. Bxf3 {[%clk 0:04:14.8]}
12... h6 {[%clk 0:04:34.4]} 13. Bxf6 {[%clk 0:04:12.9]} 13... Qxf6 {[%clk
0:04:34.3]} 14. Rd3 {[%clk 0:03:55.9]} 14... Rd8 {[%clk 0:04:31.7]} 15. Rxd8+
{[%clk 0:03:51.4]} 15... Nxd8 {[%clk 0:04:28.3]} 16. Bg4+ {[%clk 0:03:49.9]}
16... Ne6 {[%clk 0:04:25.9]} 17. f3 {[%clk 0:03:48.4]} 17... Qe5+ {[%clk
0:04:21.9]} 18. g3 {[%clk 0:03:38.9]} 18... Qxe3 {[%clk 0:04:18.7]} 19. Nd5
{[%clk 0:03:35.7]} 19... Qd2+ {[%clk 0:04:16.3]} 20. Kh3 {[%clk 0:03:29.6]}
20... Qxd5 {[%clk 0:04:14.9]} 0-1

[Event "Live Chess"]
[Site "Chess.com"]
[Date "2023.05.21"]
[Round "-"]
[White "Ferrarifan27"]
[Black "Mugzwang"]
[Result "1-0"]
[WhiteElo "2107"]
[BlackElo "1562"]
[TimeControl "300"]
[EndTime "3:26:37 PDT"]
[Termination "Ferrarifan27 won on time"]

1. e4 {[%clk 0:04:58.8]} 1... e6 {[%clk 0:04:57.8]} 2. d4 {[%clk 0:04:57]} 2...
d5 {[%clk 0:04:57.2]} 3. e5 {[%clk 0:04:55.3]} 3... c5 {[%clk 0:04:56.2]} 4. c3
{[%clk 0:04:54.8]} 4... Nc6 {[%clk 0:04:55.6]} 5. Nf3 {[%clk 0:04:53.1]} 5...
Qb6 {[%clk 0:04:54]} 6. a3 {[%clk 0:04:49]} 6... cxd4 {[%clk 0:04:44.8]} 7. cxd4
{[%clk 0:04:46.9]} 7... Nge7 {[%clk 0:04:43.6]} 8. Nc3 {[%clk 0:04:43.5]} 8...
Nf5 {[%clk 0:04:38]} 9. Na4 {[%clk 0:04:40.7]} 9... Qa5+ {[%clk 0:04:27]} 10.
Bd2 {[%clk 0:04:37.6]} 10... Qc7 {[%clk 0:04:26.4]} 11. Bc3 {[%clk 0:04:33.8]}
11... Bd7 {[%clk 0:04:18.7]} 12. Bd3 {[%clk 0:04:28.3]} 12... Be7 {[%clk
0:03:58.8]} 13. O-O {[%clk 0:04:22.6]} 13... b6 {[%clk 0:03:44]} 14. Rc1 {[%clk
0:04:17.3]} 14... Rc8 {[%clk 0:03:37.7]} 15. Bxf5 {[%clk 0:04:12.2]} 15... exf5
{[%clk 0:03:35.3]} 16. Bd2 {[%clk 0:04:10.1]} 16... O-O {[%clk 0:03:25.8]} 17.
b4 {[%clk 0:04:00.9]} 17... Qd8 {[%clk 0:03:06.2]} 18. Nc3 {[%clk 0:03:49.7]}
18... Be6 {[%clk 0:02:53.8]} 19. Be3 {[%clk 0:03:31.7]} 19... f4 {[%clk
0:02:21.3]} 20. Bxf4 {[%clk 0:03:30]} 20... a5 {[%clk 0:02:04.7]} 21. b5 {[%clk
0:03:25.3]} 21... Na7 {[%clk 0:01:59.9]} 22. a4 {[%clk 0:03:24.4]} 22... Ba3
{[%clk 0:01:52.6]} 23. Rc2 {[%clk 0:03:22.9]} 23... Bf5 {[%clk 0:01:50.4]} 24.
Ra2 {[%clk 0:03:08.1]} 24... Bb4 {[%clk 0:01:48.7]} 25. Ne2 {[%clk 0:03:02.2]}
25... Bg4 {[%clk 0:01:13.2]} 26. Qd3 {[%clk 0:02:49.6]} 26... Qd7 {[%clk
0:00:52.6]} 27. Ng5 {[%clk 0:02:44.4]} 27... Bf5 {[%clk 0:00:42.3]} 28. Qg3
{[%clk 0:02:41.9]} 28... h6 {[%clk 0:00:33.5]} 29. Nf3 {[%clk 0:02:37.2]} 29...
Bg6 {[%clk 0:00:24.3]} 30. Nh4 {[%clk 0:02:33]} 30... Be7 {[%clk 0:00:12.5]} 31.
Nxg6 {[%clk 0:02:31.1]} 31... fxg6 {[%clk 0:00:09]} 32. Qxg6 {[%clk 0:02:30]}
32... Rce8 {[%clk 0:00:02.1]} 33. Bxh6 {[%clk 0:02:26]} 1-0

[Event "Live Chess"]
[Site "Chess.com"]
[Date "2023.05.21"]
[Round "-"]
[White "raminguy"]
[Black "CeladonFish"]
[Result "1-0"]
[WhiteElo "1953"]
[BlackElo "1091"]
[TimeControl "300"]
[EndTime "3:26:44 PDT"]
[Termination "raminguy won by resignation"]

1. d4 {[%clk 0:04:58.8]} 1... Nf6 {[%clk 0:04:58.3]} 2. Nc3 {[%clk 0:04:58.2]}
2... g6 {[%clk 0:04:57.3]} 3. Bf4 {[%clk 0:04:52.5]} 3... Bg7 {[%clk 0:04:55.9]}
4. Qd2 {[%clk 0:04:51.6]} 4... O-O {[%clk 0:04:43.2]} 5. Bh6 {[%clk 0:04:48.5]}
5... d5 {[%clk 0:04:30]} 6. h4 {[%clk 0:04:47.5]} 6... Ne4 {[%clk 0:04:19.8]} 7.
Nxe4 {[%clk 0:04:43.8]} 7... dxe4 {[%clk 0:04:18.9]} 8. c3 {[%clk 0:04:42.5]}
8... c6 {[%clk 0:04:05.1]} 9. h5 {[%clk 0:04:40.3]} 9... Qb6 {[%clk 0:03:53.4]}
10. hxg6 {[%clk 0:04:37.7]} 10... fxg6 {[%clk 0:03:51.8]} 11. Bxg7 {[%clk
0:04:36.3]} 11... Kxg7 {[%clk 0:03:50.3]} 12. Qh6+ {[%clk 0:04:34.8]} 12... Kf7
{[%clk 0:03:41.4]} 13. Qxh7+ {[%clk 0:04:30.7]} 13... Ke8 {[%clk 0:03:40.5]} 14.
Qxg6+ {[%clk 0:04:30.3]} 14... Kd8 {[%clk 0:03:37.5]} 15. O-O-O {[%clk
0:04:22.4]} 15... a5 {[%clk 0:03:22.1]} 16. d5 {[%clk 0:04:20.2]} 16... cxd5
{[%clk 0:03:12.8]} 17. Qxb6+ {[%clk 0:04:20.1]} 17... Ke8 {[%clk 0:03:09.4]} 18.
g4 {[%clk 0:04:16.7]} 1-0

[Event "Live Chess"]
[Site "Chess.com"]
[Date "2023.05.21"]
[Round "-"]
[White "Reggie016"]
[Black "manthanit"]
[Result "0-1"]
[WhiteElo "1118"]
[BlackElo "1090"]
[TimeControl "300"]
[EndTime "3:26:54 PDT"]
[Termination "manthanit won by resignation"]

1. e4 {[%clk 0:04:58.1]} 1... e6 {[%clk 0:04:59.1]} 2. d4 {[%clk 0:04:54.3]}
2... d6 {[%clk 0:04:58.7]} 3. Nc3 {[%clk 0:04:52.7]} 3... b6 {[%clk 0:04:58.3]}
4. f4 {[%clk 0:04:52.3]} 4... Bb7 {[%clk 0:04:57.9]} 5. Bd3 {[%clk 0:04:49.7]}
5... Nd7 {[%clk 0:04:57]} 6. Nf3 {[%clk 0:04:48]} 6... g6 {[%clk 0:04:56.1]} 7.
Be3 {[%clk 0:04:47.7]} 7... Bg7 {[%clk 0:04:55.7]} 8. Qe2 {[%clk 0:04:47.3]}
8... Ne7 {[%clk 0:04:53.9]} 9. O-O-O {[%clk 0:04:47]} 9... h6 {[%clk 0:04:48.9]}
10. g4 {[%clk 0:04:45.5]} 10... a6 {[%clk 0:04:47.5]} 11. h4 {[%clk 0:04:45]}
11... d5 {[%clk 0:04:41.7]} 12. exd5 {[%clk 0:04:38.3]} 12... Nxd5 {[%clk
0:04:40.6]} 13. Nxd5 {[%clk 0:04:35.3]} 13... Bxd5 {[%clk 0:04:38.9]} 14. f5
{[%clk 0:04:29.8]} 14... Qe7 {[%clk 0:04:34.6]} 15. fxg6 {[%clk 0:04:24.9]}
15... fxg6 {[%clk 0:04:33.3]} 16. Bxg6+ {[%clk 0:04:24.6]} 16... Kd8 {[%clk
0:04:24.3]} 17. Bf4 {[%clk 0:03:49.6]} 17... Kc8 {[%clk 0:04:22.3]} 18. Rhe1
{[%clk 0:03:41.4]} 18... Kb7 {[%clk 0:04:19.2]} 19. Kb1 {[%clk 0:03:35.2]} 19...
Rac8 {[%clk 0:04:16.5]} 20. Ne5 {[%clk 0:03:33.5]} 20... Nxe5 {[%clk 0:04:13.3]}
21. Bxe5 {[%clk 0:03:27]} 21... Bxe5 {[%clk 0:04:11.9]} 22. dxe5 {[%clk
0:03:26.9]} 22... Rhf8 {[%clk 0:03:40.5]} 23. Be4 {[%clk 0:03:23.9]} 23... Bxe4
{[%clk 0:03:37.4]} 24. Qxe4+ {[%clk 0:03:23.8]} 24... Kb8 {[%clk 0:03:37]} 25.
Qe3 {[%clk 0:03:01.7]} 25... Qxh4 {[%clk 0:03:32.3]} 26. Rh1 {[%clk 0:02:55.6]}
26... Qxg4 {[%clk 0:03:30.7]} 27. Qxh6 {[%clk 0:02:54.8]} 27... Rcd8 {[%clk
0:02:53]} 28. Rxd8+ {[%clk 0:02:30.7]} 28... Rxd8 {[%clk 0:02:51.5]} 29. Qe3
{[%clk 0:02:22.4]} 29... Rd1+ {[%clk 0:02:45.9]} 0-1

[Event "Live Chess"]
[Site "Chess.com"]
[Date "2023.05.21"]
[Round "-"]
[White "HoarseyHorsey"]
[Black "Outspanner"]
[Result "1-0"]
[WhiteElo "1453"]
[BlackElo "1511"]
[TimeControl "300"]
[EndTime "3:26:56 PDT"]
[Termination "HoarseyHorsey won on time"]

1. d4 {[%clk 0:04:55.6]} 1... Nf6 {[%clk 0:04:53.9]} 2. c4 {[%clk 0:04:54.8]}
2... e5 {[%clk 0:04:47.2]} 3. dxe5 {[%clk 0:04:46.7]} 3... Ng4 {[%clk
0:04:45.8]} 4. Nf3 {[%clk 0:04:43.9]} 4... Bc5 {[%clk 0:04:44.6]} 5. e3 {[%clk
0:04:41.2]} 5... Nc6 {[%clk 0:04:35.6]} 6. Be2 {[%clk 0:04:31.2]} 6... Ngxe5
{[%clk 0:04:29.5]} 7. O-O {[%clk 0:04:27.4]} 7... O-O {[%clk 0:04:25.3]} 8. Nc3
{[%clk 0:04:17.6]} 8... Qf6 {[%clk 0:03:49.1]} 9. a3 {[%clk 0:03:53.6]} 9... a5
{[%clk 0:03:45.4]} 10. b3 {[%clk 0:03:40.4]} 10... Qg6 {[%clk 0:03:13.2]} 11.
Nxe5 {[%clk 0:03:30]} 11... Nxe5 {[%clk 0:03:11.1]} 12. Bb2 {[%clk 0:03:25.7]}
12... d6 {[%clk 0:02:10.5]} 13. Nd5 {[%clk 0:02:39.4]} 13... Kh8 {[%clk
0:01:54.9]} 14. Nxc7 {[%clk 0:02:26.7]} 14... Rb8 {[%clk 0:01:54.5]} 15. Nd5
{[%clk 0:02:19.9]} 15... Re8 {[%clk 0:01:22.9]} 16. Nf4 {[%clk 0:02:01.4]} 16...
Qg5 {[%clk 0:01:14.3]} 17. Bf3 {[%clk 0:01:41.8]} 17... Ng6 {[%clk 0:01:08.1]}
18. Nxg6+ {[%clk 0:01:36.5]} 18... Qxg6 {[%clk 0:01:05.3]} 19. Bd5 {[%clk
0:01:32.2]} 19... Be6 {[%clk 0:00:58]} 20. Qf3 {[%clk 0:01:26]} 20... Bxd5
{[%clk 0:00:47.9]} 21. Qxd5 {[%clk 0:01:24.5]} 21... Re4 {[%clk 0:00:42.2]} 22.
Rad1 {[%clk 0:01:14.9]} 22... Rg4 {[%clk 0:00:28.3]} 23. Bd4 {[%clk 0:00:55.8]}
23... Rg5 {[%clk 0:00:24.1]} 24. Qf3 {[%clk 0:00:50.1]} 24... Rf5 {[%clk
0:00:22.8]} 25. Qe4 {[%clk 0:00:48.3]} 25... Bxd4 {[%clk 0:00:15.6]} 26. Rxd4
{[%clk 0:00:46.5]} 26... Qg5 {[%clk 0:00:08.5]} 27. Rxd6 {[%clk 0:00:37.2]}
27... Re5 {[%clk 0:00:06.9]} 28. Qd4 {[%clk 0:00:34.7]} 28... Rbe8 {[%clk
0:00:05.1]} 29. Rd1 {[%clk 0:00:32.7]} 29... Rf5 {[%clk 0:00:01.1]} 30. Rd8
{[%clk 0:00:30.2]} 1-0

[Event "Live Chess"]
[Site "Chess.com"]
[Date "2023.05.21"]
[Round "-"]
[White "ranvir123"]
[Black "matt1979"]
[Result "0-1"]
[WhiteElo "959"]
[BlackElo "1550"]
[TimeControl "300"]
[EndTime "3:26:56 PDT"]
[Termination "matt1979 won by checkmate"]

1. e4 {[%clk 0:04:58.1]} 1... c5 {[%clk 0:04:55.2]} 2. Nc3 {[%clk 0:04:55.3]}
2... Nc6 {[%clk 0:04:52.7]} 3. Nf3 {[%clk 0:04:54]} 3... e5 {[%clk 0:04:47.7]}
4. Bb5 {[%clk 0:04:49.3]} 4... d6 {[%clk 0:04:43.9]} 5. O-O {[%clk 0:04:47.8]}
5... Bg4 {[%clk 0:04:36.1]} 6. h3 {[%clk 0:04:45.7]} 6... Bh5 {[%clk 0:04:33.2]}
7. Bxc6+ {[%clk 0:04:40.1]} 7... bxc6 {[%clk 0:04:30.8]} 8. d3 {[%clk
0:04:37.3]} 8... Nf6 {[%clk 0:04:22.8]} 9. Bg5 {[%clk 0:04:34.3]} 9... Be7
{[%clk 0:04:20.7]} 10. a4 {[%clk 0:04:27.5]} 10... O-O {[%clk 0:04:17.8]} 11. a5
{[%clk 0:04:25.2]} 11... h6 {[%clk 0:04:15.1]} 12. Bh4 {[%clk 0:04:23.9]} 12...
Nd7 {[%clk 0:04:07.3]} 13. Bxe7 {[%clk 0:04:20]} 13... Qxe7 {[%clk 0:04:05.9]}
14. Na4 {[%clk 0:04:13.6]} 14... Bg6 {[%clk 0:03:54.9]} 15. Qd2 {[%clk
0:04:03.1]} 15... f5 {[%clk 0:03:45.3]} 16. exf5 {[%clk 0:04:01.5]} 16... Bxf5
{[%clk 0:03:43.2]} 17. c3 {[%clk 0:03:55.1]} 17... Bxh3 {[%clk 0:03:39.9]} 18.
gxh3 {[%clk 0:03:53.1]} 18... Rxf3 {[%clk 0:03:38.2]} 19. Rae1 {[%clk
0:03:44.2]} 19... Rxh3 {[%clk 0:03:32.4]} 20. f4 {[%clk 0:03:42.4]} 20... Qh4
{[%clk 0:03:26.8]} 21. fxe5 {[%clk 0:03:31.9]} 21... Rh1+ {[%clk 0:03:24.8]} 22.
Kg2 {[%clk 0:03:30.5]} 22... Rh2+ {[%clk 0:03:23.8]} 23. Kf3 {[%clk 0:03:27]}
23... Rxd2 {[%clk 0:03:20.5]} 24. Ke3 {[%clk 0:03:26]} 24... Qg5+ {[%clk
0:03:12.4]} 25. Ke4 {[%clk 0:03:23.6]} 25... d5+ {[%clk 0:03:08.7]} 26. Kf3
{[%clk 0:03:21.5]} 26... Qf5+ {[%clk 0:03:01.7]} 27. Ke3 {[%clk 0:03:19.7]}
27... Qg5+ {[%clk 0:02:56.7]} 28. Kf3 {[%clk 0:03:14.7]} 28... Nxe5+ {[%clk
0:02:54.4]} 29. Rxe5 {[%clk 0:03:11.1]} 29... Qxe5 {[%clk 0:02:51.4]} 30. Nxc5
{[%clk 0:03:05.3]} 30... Rf8+ {[%clk 0:02:48.8]} 31. Kg4 {[%clk 0:03:03.5]}
31... Rg2+ {[%clk 0:02:45.7]} 32. Kh3 {[%clk 0:03:01.5]} 32... Qh2# {[%clk
0:02:43.7]} 0-1

[Event "Live Chess"]
[Site "Chess.com"]
[Date "2023.05.21"]
[Round "-"]
[White "McSlash1"]
[Black "Vitalii18a"]
[Result "1-0"]
[WhiteElo "2021"]
[BlackElo "1115"]
[TimeControl "300"]
[EndTime "3:26:58 PDT"]
[Termination "McSlash1 won on time"]

1. e4 {[%clk 0:04:59.3]} 1... e5 {[%clk 0:04:58.6]} 2. Nf3 {[%clk 0:04:58.3]}
2... d6 {[%clk 0:04:57.6]} 3. d4 {[%clk 0:04:57.1]} 3... exd4 {[%clk 0:04:56]}
4. Nxd4 {[%clk 0:04:57]} 4... Be7 {[%clk 0:04:55.4]} 5. Nc3 {[%clk 0:04:56.2]}
5... c6 {[%clk 0:04:54]} 6. Bd3 {[%clk 0:04:54.4]} 6... Nf6 {[%clk 0:04:53.1]}
7. f4 {[%clk 0:04:53.4]} 7... O-O {[%clk 0:04:52]} 8. Qf3 {[%clk 0:04:52.8]}
8... h6 {[%clk 0:04:48.8]} 9. O-O {[%clk 0:04:51.2]} 9... Nbd7 {[%clk
0:04:36.4]} 10. h3 {[%clk 0:04:48.5]} 10... Nc5 {[%clk 0:04:35.1]} 11. Be2
{[%clk 0:04:41.8]} 11... Re8 {[%clk 0:04:29.9]} 12. Be3 {[%clk 0:04:39.9]} 12...
Bf8 {[%clk 0:04:28.3]} 13. e5 {[%clk 0:04:36.2]} 13... dxe5 {[%clk 0:04:26.7]}
14. fxe5 {[%clk 0:04:36.1]} 14... Rxe5 {[%clk 0:04:18]} 15. Rad1 {[%clk
0:04:35]} 15... Qe7 {[%clk 0:04:08.9]} 16. Bf4 {[%clk 0:04:29.8]} 16... Rxe2
{[%clk 0:03:26.9]} 17. Ndxe2 {[%clk 0:04:26.1]} 17... Bf5 {[%clk 0:03:18.4]} 18.
Bd6 {[%clk 0:04:20.6]} 18... Be4 {[%clk 0:02:50.5]} 19. Qf2 {[%clk 0:04:04.9]}
19... Qxd6 {[%clk 0:02:17.9]} 20. Rxd6 {[%clk 0:04:03.1]} 20... Bxd6 {[%clk
0:02:16.9]} 21. Nxe4 {[%clk 0:04:01.8]} 21... Ncxe4 {[%clk 0:02:15.4]} 22. Qd4
{[%clk 0:03:55.9]} 22... b6 {[%clk 0:02:05.1]} 23. b4 {[%clk 0:03:48.5]} 23...
Re8 {[%clk 0:01:52.8]} 24. Rxf6 {[%clk 0:03:31.2]} 24... gxf6 {[%clk 0:01:48.3]}
25. Nc3 {[%clk 0:03:20.6]} 25... Nxc3 {[%clk 0:01:40.2]} 26. Qxd6 {[%clk
0:03:19.8]} 26... Nxa2 {[%clk 0:01:32]} 27. Qxc6 {[%clk 0:03:13.6]} 27... Re1+
{[%clk 0:01:20.7]} 28. Kh2 {[%clk 0:03:12.2]} 28... Nxb4 {[%clk 0:01:13.8]} 29.
Qc8+ {[%clk 0:03:04.5]} 29... Kh7 {[%clk 0:00:50.9]} 30. Qc3 {[%clk 0:03:00.3]}
30... Nd5 {[%clk 0:00:41.8]} 31. Qxe1 {[%clk 0:02:58.7]} 31... Nf4 {[%clk
0:00:35.1]} 32. Qe4+ {[%clk 0:02:56.8]} 32... Ng6 {[%clk 0:00:33]} 33. h4 {[%clk
0:02:56.7]} 33... Kg7 {[%clk 0:00:29.8]} 34. h5 {[%clk 0:02:55.1]} 34... Ne5
{[%clk 0:00:28.6]} 35. Qb7 {[%clk 0:02:51.5]} 35... Ng4+ {[%clk 0:00:17.2]} 36.
Kg3 {[%clk 0:02:50.3]} 36... Ne5 {[%clk 0:00:13.8]} 37. Qxa7 {[%clk 0:02:49.6]}
37... b5 {[%clk 0:00:11.9]} 38. Qb6 {[%clk 0:02:47.6]} 38... b4 {[%clk
0:00:10.7]} 39. Qxb4 {[%clk 0:02:45.5]} 39... Nc6 {[%clk 0:00:00.1]} 40. Qg4+
{[%clk 0:02:44.7]} 1-0